[Event "*** Titled Tuesday Blitz"]
[Site "Chess.com"]
[Date "2020.05.12"]
[Round "3"]
[White "WastefulJustice"]
[Black "googlegoom"]
[Result "1-0"]
[WhiteElo "2386"]
[BlackElo "2551"]
[TimeControl "180+1"]
[EndTime "10:28:25 PDT"]
[Termination "WastefulJustice won by resignation"]

1. e4 {[%clk 0:03:00.9]} 1... c5 {[%clk 0:02:59.7]} 2. Nc3 {[%clk 0:02:58.9]}
2... Nc6 {[%clk 0:02:59.4]} 3. f4 {[%clk 0:02:58.7]} 3... g6 {[%clk 0:02:59.6]}
4. Nf3 {[%clk 0:02:58.6]} 4... Bg7 {[%clk 0:03:00.2]} 5. Bb5 {[%clk 0:02:59.3]}
5... Nd4 {[%clk 0:02:57.2]} 6. O-O {[%clk 0:02:59.2]} 6... e6 {[%clk 0:02:49]}
7. e5 {[%clk 0:02:44.5]} 7... Ne7 {[%clk 0:02:15.6]} 8. Nxd4 {[%clk 0:02:44]}
8... cxd4 {[%clk 0:02:15.6]} 9. Ne4 {[%clk 0:02:44.6]} 9... O-O {[%clk
0:01:57.1]} 10. Qe1 {[%clk 0:02:40.2]} 10... Nd5 {[%clk 0:01:14.3]} 11. Qf2
{[%clk 0:02:12.8]} 11... f6 {[%clk 0:01:10.5]} 12. exf6 {[%clk 0:01:57]} 12...
Nxf6 {[%clk 0:01:10.3]} 13. d3 {[%clk 0:01:39.4]} 13... Nd5 {[%clk 0:01:03.7]}
14. Bc4 {[%clk 0:01:34.8]} 14... Ne3 {[%clk 0:00:56.7]} 15. Bxe3 {[%clk
0:01:32.8]} 15... dxe3 {[%clk 0:00:57.6]} 16. Qxe3 {[%clk 0:01:33]} 16... d5
{[%clk 0:00:58]} 17. Rad1 {[%clk 0:01:15]} 17... dxc4 {[%clk 0:00:54.6]} 18.
dxc4 {[%clk 0:01:14.4]} 18... Qb6 {[%clk 0:00:54.1]} 19. c5 {[%clk 0:01:13.9]}
19... Qxb2 {[%clk 0:00:53.7]} 20. Nd6 {[%clk 0:01:11.6]} 20... Qxa2 {[%clk
0:00:42.9]} 21. Rd3 {[%clk 0:01:00.7]} 21... a5 {[%clk 0:00:34.4]} 22. c4 {[%clk
0:00:49.6]} 22... a4 {[%clk 0:00:32.3]} 23. Nxc8 {[%clk 0:00:46.4]} 23... Raxc8
{[%clk 0:00:25.8]} 24. Qxe6+ {[%clk 0:00:47]} 24... Kh8 {[%clk 0:00:26.3]} 25.
Rh3 {[%clk 0:00:46.9]} 25... Rxc5 {[%clk 0:00:23.9]} 26. Qxg6 {[%clk 0:00:45.4]}
26... h6 {[%clk 0:00:22.5]} 27. f5 {[%clk 0:00:39.3]} 27... Qb2 {[%clk
0:00:21.4]} 28. f6 {[%clk 0:00:29.5]} 28... Rxf6 {[%clk 0:00:21.3]} 29. Rxf6
{[%clk 0:00:29.3]} 29... Qxf6 {[%clk 0:00:21.8]} 30. Rxh6+ {[%clk 0:00:29.5]}
30... Kg8 {[%clk 0:00:22.2]} 31. Qh7+ {[%clk 0:00:25.7]} 31... Kf8 {[%clk
0:00:18.7]} 32. Rxf6+ {[%clk 0:00:25.6]} 32... Bxf6 {[%clk 0:00:19.3]} 33. Qxb7
{[%clk 0:00:25.4]} 33... Bd4+ {[%clk 0:00:14.3]} 34. Kf1 {[%clk 0:00:24.8]}
34... Rf5+ {[%clk 0:00:11.1]} 35. Ke2 {[%clk 0:00:21.9]} 35... Rf7 {[%clk
0:00:10.7]} 36. Qa8+ {[%clk 0:00:18.4]} 36... Kg7 {[%clk 0:00:09.7]} 37. Qxa4
{[%clk 0:00:18.9]} 37... Bf6 {[%clk 0:00:09.1]} 38. c5 {[%clk 0:00:18.4]} 38...
Re7+ {[%clk 0:00:08]} 39. Kd3 {[%clk 0:00:18.4]} 39... Rd7+ {[%clk 0:00:08.6]}
40. Qxd7+ {[%clk 0:00:17.9]} 1-0

[Event "*** Titled Tuesday Blitz"]
[Site "Chess.com"]
[Date "2020.05.12"]
[Round "3"]
[White "KarstenHansch"]
[Black "AliKa2810"]
[Result "1-0"]
[WhiteElo "2373"]
[BlackElo "2537"]
[TimeControl "180+1"]
[EndTime "10:28:25 PDT"]
[Termination "KarstenHansch won by resignation"]

1. e4 {[%clk 0:03:00.9]} 1... e5 {[%clk 0:02:59.3]} 2. Nf3 {[%clk 0:03:00.4]}
2... Nc6 {[%clk 0:02:59.5]} 3. Bb5 {[%clk 0:03:00.9]} 3... Nf6 {[%clk
0:02:58.9]} 4. O-O {[%clk 0:03:00.2]} 4... Nxe4 {[%clk 0:02:58.8]} 5. Re1 {[%clk
0:02:59.2]} 5... Nd6 {[%clk 0:02:58.3]} 6. Nxe5 {[%clk 0:02:58.6]} 6... Nxe5
{[%clk 0:02:58.8]} 7. Rxe5+ {[%clk 0:02:58.2]} 7... Be7 {[%clk 0:02:59.4]} 8.
Bf1 {[%clk 0:02:57.4]} 8... O-O {[%clk 0:02:59.4]} 9. d4 {[%clk 0:02:57.3]} 9...
Bf6 {[%clk 0:02:53.6]} 10. Re1 {[%clk 0:02:56.6]} 10... Re8 {[%clk 0:02:53.4]}
11. c3 {[%clk 0:02:29.6]} 11... Rxe1 {[%clk 0:02:48.6]} 12. Qxe1 {[%clk
0:02:30.5]} 12... b6 {[%clk 0:02:42.4]} 13. Bf4 {[%clk 0:02:29.3]} 13... Bb7
{[%clk 0:02:41.7]} 14. Bxd6 {[%clk 0:02:28.8]} 14... cxd6 {[%clk 0:02:41.3]} 15.
Nd2 {[%clk 0:02:28.3]} 15... Qc7 {[%clk 0:02:38.6]} 16. Bd3 {[%clk 0:02:24.6]}
16... g6 {[%clk 0:02:30.3]} 17. Qe3 {[%clk 0:02:10]} 17... Rf8 {[%clk
0:02:07.6]} 18. Re1 {[%clk 0:02:05.5]} 18... Bc6 {[%clk 0:02:06.2]} 19. Qg3
{[%clk 0:02:00.5]} 19... b5 {[%clk 0:01:45.6]} 20. a3 {[%clk 0:01:56.3]} 20...
a5 {[%clk 0:01:44.1]} 21. d5 {[%clk 0:01:44.9]} 21... Bxd5 {[%clk 0:01:41.4]}
22. Bxb5 {[%clk 0:01:44.7]} 22... Rb8 {[%clk 0:01:30.9]} 23. a4 {[%clk
0:01:42.9]} 23... Bc6 {[%clk 0:01:28.7]} 24. Ne4 {[%clk 0:00:47]} 24... Be5
{[%clk 0:01:27.7]} 25. f4 {[%clk 0:00:46.7]} 25... Bg7 {[%clk 0:01:23.2]} 26. f5
{[%clk 0:00:42]} 26... Bxb5 {[%clk 0:01:21]} 27. axb5 {[%clk 0:00:37.9]} 27...
Be5 {[%clk 0:01:17.6]} 28. Qh4 {[%clk 0:00:33.4]} 28... Qb6+ {[%clk 0:00:54.2]}
29. Kh1 {[%clk 0:00:32.1]} 29... Qxb5 {[%clk 0:00:51.1]} 30. f6 {[%clk
0:00:27.4]} 30... h5 {[%clk 0:00:30.2]} 31. Qg5 {[%clk 0:00:18.6]} 31... Kh7
{[%clk 0:00:30.1]} 32. Qe3 {[%clk 0:00:08.9]} 32... Qxb2 {[%clk 0:00:25.9]} 33.
Ng5+ {[%clk 0:00:09.1]} 33... Kg8 {[%clk 0:00:26.2]} 34. Ne4 {[%clk 0:00:09]}
34... Qc2 {[%clk 0:00:21.1]} 35. Qh6 {[%clk 0:00:06.8]} 1-0

[Event "*** Titled Tuesday Blitz"]
[Site "Chess.com"]
[Date "2020.05.12"]
[Round "3"]
[White "tamarozi99"]
[Black "babyking1205"]
[Result "0-1"]
[WhiteElo "1968"]
[BlackElo "2464"]
[TimeControl "180+1"]
[EndTime "10:28:25 PDT"]
[Termination "babyking1205 won by resignation"]

1. e4 {[%clk 0:03:00.9]} 1... c5 {[%clk 0:02:59.8]} 2. Nf3 {[%clk 0:03:00.4]}
2... d6 {[%clk 0:02:59.9]} 3. d4 {[%clk 0:02:56.8]} 3... cxd4 {[%clk 0:03:00.8]}
4. Nxd4 {[%clk 0:02:56.4]} 4... Nf6 {[%clk 0:03:01.2]} 5. Nc3 {[%clk 0:02:56.4]}
5... a6 {[%clk 0:03:01.4]} 6. Be2 {[%clk 0:02:54.6]} 6... e5 {[%clk 0:02:58.7]}
7. Nb3 {[%clk 0:02:55.1]} 7... Be7 {[%clk 0:02:58.6]} 8. O-O {[%clk 0:02:55.1]}
8... Be6 {[%clk 0:02:58.6]} 9. a4 {[%clk 0:02:51.1]} 9... Nbd7 {[%clk
0:02:57.9]} 10. Be3 {[%clk 0:02:51.1]} 10... Rc8 {[%clk 0:02:54.6]} 11. f4
{[%clk 0:02:50.4]} 11... Nb6 {[%clk 0:02:49.7]} 12. f5 {[%clk 0:02:40.7]} 12...
Bc4 {[%clk 0:02:47.4]} 13. a5 {[%clk 0:02:24]} 13... Bxe2 {[%clk 0:02:45.1]} 14.
Qxe2 {[%clk 0:02:11.2]} 14... Nc4 {[%clk 0:02:44.5]} 15. Bc1 {[%clk 0:02:08.9]}
15... O-O {[%clk 0:02:28.3]} 16. Ra4 {[%clk 0:02:08.3]} 16... b5 {[%clk
0:02:18.3]} 17. axb6 {[%clk 0:02:07.1]} 17... Qxb6+ {[%clk 0:02:07.8]} 18. Kh1
{[%clk 0:02:06.8]} 18... Qc6 {[%clk 0:02:07.8]} 19. Na5 {[%clk 0:01:51.2]} 19...
Nxa5 {[%clk 0:02:05]} 20. Rxa5 {[%clk 0:01:52.1]} 20... Ra8 {[%clk 0:01:59.5]}
21. Bg5 {[%clk 0:01:51.7]} 21... Rfb8 {[%clk 0:01:57.8]} 22. Bxf6 {[%clk
0:01:48.4]} 22... Bxf6 {[%clk 0:01:58.7]} 23. Nd5 {[%clk 0:01:48.6]} 23... Bd8
{[%clk 0:01:58.5]} 24. Ra2 {[%clk 0:01:37.5]} 24... a5 {[%clk 0:01:46.7]} 25. c3
{[%clk 0:01:22.7]} 25... Rb5 {[%clk 0:01:39]} 26. Qg4 {[%clk 0:01:20.7]} 26...
Qc4 {[%clk 0:01:30.7]} 27. Raa1 {[%clk 0:01:10.3]} 27... Rxb2 {[%clk 0:01:15.6]}
28. f6 {[%clk 0:01:10.3]} 28... g6 {[%clk 0:01:13.6]} 29. Qh4 {[%clk 0:01:05.1]}
29... h5 {[%clk 0:01:11.4]} 30. Qg5 {[%clk 0:01:05.3]} 30... Qxe4 {[%clk
0:01:08.5]} 31. Ne3 {[%clk 0:00:45.1]} 31... Kh7 {[%clk 0:01:04.2]} 32. Rae1
{[%clk 0:00:41.6]} 32... Bb6 {[%clk 0:01:01.2]} 33. Nf5 {[%clk 0:00:32.1]} 33...
Qxg2+ {[%clk 0:00:49.5]} 34. Qxg2 {[%clk 0:00:31.5]} 34... Rxg2 {[%clk
0:00:50.4]} 35. Kxg2 {[%clk 0:00:31.8]} 35... gxf5 {[%clk 0:00:51]} 36. Rxf5
{[%clk 0:00:30.6]} 36... a4 {[%clk 0:00:46.8]} 37. Rg5 {[%clk 0:00:25]} 37... a3
{[%clk 0:00:41.8]} 38. Re4 {[%clk 0:00:20.5]} 38... Kh6 {[%clk 0:00:34.3]} 39.
Rf5 {[%clk 0:00:12.7]} 39... a2 {[%clk 0:00:32.4]} 40. Rh4 {[%clk 0:00:12.9]}
40... Be3 {[%clk 0:00:30.2]} 41. Rhxh5+ {[%clk 0:00:12.1]} 41... Kg6 {[%clk
0:00:30.4]} 42. h4 {[%clk 0:00:03.7]} 42... a1=Q {[%clk 0:00:29.6]} 43. Rhg5+
{[%clk 0:00:03.8]} 43... Bxg5 {[%clk 0:00:30]} 44. Rxg5+ {[%clk 0:00:04.2]}
44... Kxf6 {[%clk 0:00:30.8]} 45. Rg3 {[%clk 0:00:04.5]} 45... Ra2+ {[%clk
0:00:30.5]} 0-1

[Event "*** Titled Tuesday Blitz"]
[Site "Chess.com"]
[Date "2020.05.12"]
[Round "3"]
[White "Kensei26"]
[Black "NormWeinstein"]
[Result "1-0"]
[WhiteElo "2218"]
[BlackElo "2428"]
[TimeControl "180+1"]
[EndTime "10:28:26 PDT"]
[Termination "Kensei26 won on time"]

1. e4 {[%clk 0:02:35.8]} 1... c6 {[%clk 0:02:57.4]} 2. d4 {[%clk 0:02:35.3]}
2... d6 {[%clk 0:02:57.8]} 3. Nc3 {[%clk 0:02:34.7]} 3... Nf6 {[%clk 0:02:58.3]}
4. f4 {[%clk 0:02:34.2]} 4... Qa5 {[%clk 0:02:57.6]} 5. Bd3 {[%clk 0:02:34.3]}
5... e5 {[%clk 0:02:56.6]} 6. Nf3 {[%clk 0:02:34.9]} 6... Bg4 {[%clk 0:02:56.4]}
7. Be3 {[%clk 0:02:32.8]} 7... Nbd7 {[%clk 0:02:56.2]} 8. O-O {[%clk 0:02:32.2]}
8... Be7 {[%clk 0:02:56.3]} 9. h3 {[%clk 0:02:31.3]} 9... Bxf3 {[%clk
0:02:56.4]} 10. Qxf3 {[%clk 0:02:27.9]} 10... O-O {[%clk 0:02:56.6]} 11. Ne2
{[%clk 0:02:26.6]} 11... c5 {[%clk 0:02:41.1]} 12. d5 {[%clk 0:02:20.6]} 12...
exf4 {[%clk 0:02:39.2]} 13. Bxf4 {[%clk 0:02:19.3]} 13... b5 {[%clk 0:02:31.1]}
14. Ng3 {[%clk 0:02:12.9]} 14... Ne8 {[%clk 0:02:28.5]} 15. Nf5 {[%clk
0:02:09.5]} 15... Qd8 {[%clk 0:02:26.8]} 16. Qg3 {[%clk 0:02:02.9]} 16... c4
{[%clk 0:02:06.7]} 17. Be2 {[%clk 0:01:54.8]} 17... Ne5 {[%clk 0:01:21.7]} 18.
Bxe5 {[%clk 0:01:47.9]} 18... dxe5 {[%clk 0:01:21.4]} 19. Nh6+ {[%clk
0:01:48.2]} 19... Kh8 {[%clk 0:01:20.6]} 20. Nxf7+ {[%clk 0:01:48.3]} 20... Rxf7
{[%clk 0:01:20.4]} 21. Rxf7 {[%clk 0:01:49.1]} 21... Bf6 {[%clk 0:01:14.7]} 22.
Bg4 {[%clk 0:01:37.5]} 22... Nd6 {[%clk 0:01:10.5]} 23. Rd7 {[%clk 0:01:35.5]}
23... Qb6+ {[%clk 0:01:08.1]} 24. Kh1 {[%clk 0:01:35.8]} 24... Nxe4 {[%clk
0:01:06.6]} 25. Qf3 {[%clk 0:01:18.5]} 25... Nf2+ {[%clk 0:01:03.4]} 26. Kh2
{[%clk 0:01:18.1]} 26... e4 {[%clk 0:01:03.5]} 27. Qf5 {[%clk 0:00:49.4]} 27...
e3 {[%clk 0:00:48.9]} 28. Re1 {[%clk 0:00:36.5]} 28... Rf8 {[%clk 0:00:41.5]}
29. Qe6 {[%clk 0:00:35.9]} 29... Bd4 {[%clk 0:00:33.1]} 30. Rf7 {[%clk
0:00:28.9]} 30... Qb8+ {[%clk 0:00:23.4]} 31. d6 {[%clk 0:00:28]} 31... Rg8
{[%clk 0:00:17.8]} 32. Qe7 {[%clk 0:00:22.7]} 32... Bc5 {[%clk 0:00:14.7]} 33.
Qb7 {[%clk 0:00:11.2]} 33... Qxd6+ {[%clk 0:00:12.1]} 34. g3 {[%clk 0:00:10.1]}
34... h6 {[%clk 0:00:07.8]} 35. Qd7 {[%clk 0:00:08.9]} 35... Qe5 {[%clk
0:00:07.3]} 36. Rf5 {[%clk 0:00:08.4]} 36... Qxb2 {[%clk 0:00:05.5]} 37. Qe6
{[%clk 0:00:07]} 37... Qxc2 {[%clk 0:00:03.9]} 38. Rh5 {[%clk 0:00:05.3]} 1-0

[Event "*** Titled Tuesday Blitz"]
[Site "Chess.com"]
[Date "2020.05.12"]
[Round "3"]
[White "Harut-1998"]
[Black "Hasangatin_Ramil"]
[Result "1-0"]
[WhiteElo "2756"]
[BlackElo "2557"]
[TimeControl "180+1"]
[EndTime "10:28:28 PDT"]
[Termination "Harut-1998 won on time"]

1. d4 {[%clk 0:02:52.8]} 1... d6 {[%clk 0:02:58.8]} 2. Nf3 {[%clk 0:02:50.5]}
2... Bg4 {[%clk 0:02:57.8]} 3. Nbd2 {[%clk 0:02:46.5]} 3... Nf6 {[%clk 0:02:57]}
4. h3 {[%clk 0:02:45.6]} 4... Bh5 {[%clk 0:02:56.5]} 5. e4 {[%clk 0:02:43.7]}
5... e6 {[%clk 0:02:55.9]} 6. Bd3 {[%clk 0:02:41.1]} 6... Be7 {[%clk 0:02:54.5]}
7. O-O {[%clk 0:02:40.5]} 7... O-O {[%clk 0:02:52.7]} 8. c3 {[%clk 0:02:37]}
8... d5 {[%clk 0:02:51.8]} 9. e5 {[%clk 0:02:35.3]} 9... Nfd7 {[%clk 0:02:52]}
10. b4 {[%clk 0:02:24.2]} 10... a5 {[%clk 0:02:50.7]} 11. b5 {[%clk 0:02:21.7]}
11... c5 {[%clk 0:02:49.7]} 12. a4 {[%clk 0:02:13.3]} 12... Nb6 {[%clk
0:02:43.4]} 13. Ba3 {[%clk 0:02:09.6]} 13... N8d7 {[%clk 0:02:41.9]} 14. Qc2
{[%clk 0:02:07.1]} 14... Bg6 {[%clk 0:02:37.4]} 15. Bxg6 {[%clk 0:02:06.4]}
15... hxg6 {[%clk 0:02:31.7]} 16. Rfe1 {[%clk 0:02:03.6]} 16... cxd4 {[%clk
0:02:25.7]} 17. cxd4 {[%clk 0:02:01.7]} 17... Rc8 {[%clk 0:02:24.3]} 18. Qd3
{[%clk 0:01:58.8]} 18... Bxa3 {[%clk 0:02:19.6]} 19. Qxa3 {[%clk 0:01:56.2]}
19... Nc4 {[%clk 0:02:10.8]} 20. Nxc4 {[%clk 0:01:54]} 20... Rxc4 {[%clk
0:02:11.4]} 21. Rac1 {[%clk 0:01:47.2]} 21... Nb6 {[%clk 0:02:10.7]} 22. Rxc4
{[%clk 0:01:45.1]} 22... Nxc4 {[%clk 0:02:11.6]} 23. Qc1 {[%clk 0:01:40.8]}
23... Qe7 {[%clk 0:02:05.1]} 24. Qf4 {[%clk 0:01:33.9]} 24... f6 {[%clk
0:01:38.5]} 25. exf6 {[%clk 0:01:24.1]} 25... gxf6 {[%clk 0:01:38.8]} 26. Qh6
{[%clk 0:01:21]} 26... Qg7 {[%clk 0:01:24.2]} 27. Qxg7+ {[%clk 0:01:20.1]} 27...
Kxg7 {[%clk 0:01:25.1]} 28. Rxe6 {[%clk 0:01:20.3]} 28... Nb2 {[%clk 0:01:25.2]}
29. Re2 {[%clk 0:01:14.7]} 29... Nxa4 {[%clk 0:01:16.9]} 30. Ra2 {[%clk
0:01:13.9]} 30... Nc3 {[%clk 0:01:16.6]} 31. Rxa5 {[%clk 0:01:12.6]} 31... b6
{[%clk 0:00:54.4]} 32. Ra3 {[%clk 0:01:10.6]} 32... Nxb5 {[%clk 0:00:43.2]} 33.
Rb3 {[%clk 0:01:09.7]} 33... Nd6 {[%clk 0:00:38.8]} 34. Rxb6 {[%clk 0:01:09.4]}
34... Ne4 {[%clk 0:00:37]} 35. Rb7+ {[%clk 0:01:07.3]} 35... Rf7 {[%clk
0:00:37.2]} 36. Rxf7+ {[%clk 0:01:04.7]} 36... Kxf7 {[%clk 0:00:38.1]} 37. h4
{[%clk 0:01:05.6]} 37... g5 {[%clk 0:00:33.3]} 38. Kf1 {[%clk 0:01:02.5]} 38...
g4 {[%clk 0:00:27.8]} 39. Ne1 {[%clk 0:01:00.7]} 39... g3 {[%clk 0:00:19.7]} 40.
fxg3 {[%clk 0:00:58.7]} 40... Nxg3+ {[%clk 0:00:19.3]} 41. Kf2 {[%clk
0:00:58.7]} 41... Nf5 {[%clk 0:00:19.7]} 42. Nf3 {[%clk 0:00:57.1]} 42... Nh6
{[%clk 0:00:19.4]} 43. Kg3 {[%clk 0:00:52]} 43... Ke6 {[%clk 0:00:19]} 44. Kf4
{[%clk 0:00:50.3]} 44... f5 {[%clk 0:00:16.8]} 45. Kg5 {[%clk 0:00:48.4]} 45...
Ng4 {[%clk 0:00:17]} 46. h5 {[%clk 0:00:46.3]} 46... Ne3 {[%clk 0:00:17.4]} 47.
h6 {[%clk 0:00:44.5]} 47... Kf7 {[%clk 0:00:17]} 48. Ne5+ {[%clk 0:00:42.2]}
48... Kg8 {[%clk 0:00:16.4]} 49. Kg6 {[%clk 0:00:40.5]} 1-0

[Event "*** Titled Tuesday Blitz"]
[Site "Chess.com"]
[Date "2020.05.12"]
[Round "3"]
[White "maurito96"]
[Black "Anna_ChessMate"]
[Result "0-1"]
[WhiteElo "2214"]
[BlackElo "2498"]
[TimeControl "180+1"]
[EndTime "10:28:28 PDT"]
[Termination "Anna_ChessMate won on time"]

1. Nf3 {[%clk 0:03:00.9]} 1... Nf6 {[%clk 0:02:59.6]} 2. c4 {[%clk 0:03:00.6]}
2... g6 {[%clk 0:02:56.8]} 3. Nc3 {[%clk 0:03:00.2]} 3... d5 {[%clk 0:02:56.6]}
4. cxd5 {[%clk 0:03:00.2]} 4... Nxd5 {[%clk 0:02:57.5]} 5. e4 {[%clk 0:03:00.6]}
5... Nxc3 {[%clk 0:02:57.1]} 6. dxc3 {[%clk 0:02:59.7]} 6... Qxd1+ {[%clk
0:02:55]} 7. Kxd1 {[%clk 0:03:00.2]} 7... Bg7 {[%clk 0:02:55.9]} 8. Kc2 {[%clk
0:03:00.1]} 8... O-O {[%clk 0:02:56.4]} 9. Bf4 {[%clk 0:02:57.1]} 9... c6 {[%clk
0:02:55.4]} 10. Bc4 {[%clk 0:02:48.3]} 10... Nd7 {[%clk 0:02:55.5]} 11. a4
{[%clk 0:02:42.7]} 11... Nc5 {[%clk 0:02:55.2]} 12. Rhe1 {[%clk 0:02:35.2]}
12... h6 {[%clk 0:02:54.4]} 13. a5 {[%clk 0:02:19.3]} 13... a6 {[%clk
0:02:53.8]} 14. b4 {[%clk 0:02:08.9]} 14... Ne6 {[%clk 0:02:52.9]} 15. Be3
{[%clk 0:02:07.3]} 15... g5 {[%clk 0:02:48.9]} 16. g3 {[%clk 0:01:54.7]} 16...
Kh8 {[%clk 0:02:48.4]} 17. Rad1 {[%clk 0:01:52.1]} 17... Nc7 {[%clk 0:02:48.1]}
18. Nd4 {[%clk 0:01:48.6]} 18... Nb5 {[%clk 0:02:40.4]} 19. Bxb5 {[%clk
0:01:41.9]} 19... axb5 {[%clk 0:02:38.4]} 20. Nf5 {[%clk 0:01:41.4]} 20... Be6
{[%clk 0:02:31.4]} 21. Nxe7 {[%clk 0:01:29.8]} 21... Kh7 {[%clk 0:02:25]} 22.
Nf5 {[%clk 0:01:28.4]} 22... Bf6 {[%clk 0:02:25.2]} 23. f4 {[%clk 0:01:22.6]}
23... gxf4 {[%clk 0:02:24.2]} 24. gxf4 {[%clk 0:01:23.2]} 24... Rg8 {[%clk
0:02:22.4]} 25. Rg1 {[%clk 0:01:17.2]} 25... Rge8 {[%clk 0:01:58.4]} 26. Nd4
{[%clk 0:01:14.4]} 26... Bc4 {[%clk 0:01:57.1]} 27. e5 {[%clk 0:01:12.2]} 27...
Bh8 {[%clk 0:01:57.4]} 28. Nf5 {[%clk 0:01:07.7]} 28... Bd5 {[%clk 0:01:56.7]}
29. Nd6 {[%clk 0:01:03.6]} 29... Re7 {[%clk 0:01:56]} 30. Rg3 {[%clk 0:00:55.6]}
30... f6 {[%clk 0:01:53.9]} 31. Bd4 {[%clk 0:00:32.8]} 31... fxe5 {[%clk
0:01:49.8]} 32. fxe5 {[%clk 0:00:32.8]} 32... Rf8 {[%clk 0:01:43.8]} 33. Re1
{[%clk 0:00:26.9]} 33... Be6 {[%clk 0:01:26.2]} 34. Kd2 {[%clk 0:00:23.5]} 34...
h5 {[%clk 0:01:21]} 35. h4 {[%clk 0:00:21.7]} 35... Bg7 {[%clk 0:01:20.7]} 36.
Reg1 {[%clk 0:00:16.6]} 36... Bh6+ {[%clk 0:01:20.3]} 37. Kd3 {[%clk 0:00:16.4]}
37... Bg4 {[%clk 0:01:19]} 38. Ne4 {[%clk 0:00:15.8]} 38... Bf5 {[%clk
0:01:19.2]} 39. Re1 {[%clk 0:00:12.6]} 39... Rd8 {[%clk 0:01:13.2]} 40. Rf3
{[%clk 0:00:10.2]} 40... Rxe5 {[%clk 0:01:06.7]} 41. Rxf5 {[%clk 0:00:09.5]}
41... Rxf5 {[%clk 0:01:06.9]} 42. Rg1 {[%clk 0:00:08.9]} 42... Rf4 {[%clk
0:00:58.7]} 43. Nc5 {[%clk 0:00:06.8]} 43... Rg4 {[%clk 0:00:56.6]} 44. Re1
{[%clk 0:00:05.7]} 44... Rg7 {[%clk 0:00:45]} 45. Ne6 {[%clk 0:00:04.5]} 45...
Re7 {[%clk 0:00:40.6]} 46. Re4 {[%clk 0:00:02.6]} 46... Rd5 {[%clk 0:00:37.2]}
0-1

[Event "*** Titled Tuesday Blitz"]
[Site "Chess.com"]
[Date "2020.05.12"]
[Round "3"]
[White "zurzan"]
[Black "Majesth"]
[Result "0-1"]
[WhiteElo "1983"]
[BlackElo "2464"]
[TimeControl "180+1"]
[EndTime "10:28:28 PDT"]
[Termination "Majesth won by resignation"]

1. f4 {[%clk 0:03:00.9]} 1... g6 {[%clk 0:02:57.9]} 2. Nf3 {[%clk 0:03:00.1]}
2... Bg7 {[%clk 0:02:58.4]} 3. g3 {[%clk 0:03:01]} 3... d6 {[%clk 0:02:57.1]} 4.
Bg2 {[%clk 0:03:01.9]} 4... e5 {[%clk 0:02:57.2]} 5. O-O {[%clk 0:03:02.8]} 5...
exf4 {[%clk 0:02:48.1]} 6. gxf4 {[%clk 0:03:02.5]} 6... d5 {[%clk 0:02:44.9]} 7.
d3 {[%clk 0:03:02]} 7... Nf6 {[%clk 0:02:44]} 8. c3 {[%clk 0:03:00.9]} 8... O-O
{[%clk 0:02:43.2]} 9. Qe1 {[%clk 0:02:53.4]} 9... Re8 {[%clk 0:02:38.5]} 10. Ne5
{[%clk 0:02:46.9]} 10... Nbd7 {[%clk 0:02:28.1]} 11. d4 {[%clk 0:02:45.6]} 11...
Nf8 {[%clk 0:02:23.7]} 12. Nd2 {[%clk 0:02:40.4]} 12... Bf5 {[%clk 0:02:21.1]}
13. Ndf3 {[%clk 0:02:38]} 13... Ne4 {[%clk 0:02:10.1]} 14. Nh4 {[%clk
0:02:08.3]} 14... Bc8 {[%clk 0:01:46.6]} 15. f5 {[%clk 0:02:03.4]} 15... Bxe5
{[%clk 0:01:38.1]} 16. dxe5 {[%clk 0:02:02.3]} 16... Rxe5 {[%clk 0:01:39]} 17.
Bf4 {[%clk 0:01:55.1]} 17... Re8 {[%clk 0:01:37.4]} 18. fxg6 {[%clk 0:01:51.5]}
18... hxg6 {[%clk 0:01:34.8]} 19. Nf3 {[%clk 0:01:39.4]} 19... Bg4 {[%clk
0:01:27.8]} 20. Ne5 {[%clk 0:01:35.3]} 20... Bf5 {[%clk 0:01:24.7]} 21. Rd1
{[%clk 0:01:05.3]} 21... c6 {[%clk 0:01:13.8]} 22. c4 {[%clk 0:01:03.8]} 22...
Qf6 {[%clk 0:01:07.4]} 23. cxd5 {[%clk 0:00:46.8]} 23... Rxe5 {[%clk 0:01:04.4]}
24. Bxe5 {[%clk 0:00:46.6]} 24... Qxe5 {[%clk 0:01:05.3]} 25. dxc6 {[%clk
0:00:45.3]} 25... bxc6 {[%clk 0:01:06.2]} 26. e3 {[%clk 0:00:39]} 26... Ne6
{[%clk 0:01:02.3]} 27. Qb4 {[%clk 0:00:26.2]} 27... c5 {[%clk 0:00:56.9]} 28.
Qb7 {[%clk 0:00:24.8]} 28... Rf8 {[%clk 0:00:52.1]} 29. Qxa7 {[%clk 0:00:24]}
29... Qxb2 {[%clk 0:00:46.1]} 30. Rb1 {[%clk 0:00:22.6]} 30... Qe5 {[%clk
0:00:44.5]} 31. Qb7 {[%clk 0:00:21.9]} 31... Nd2 {[%clk 0:00:42.3]} 32. e4
{[%clk 0:00:19.5]} 32... Bg4 {[%clk 0:00:38.3]} 33. Rxf7 {[%clk 0:00:16.9]}
33... Rxf7 {[%clk 0:00:33.8]} 34. Qc8+ {[%clk 0:00:15.9]} 34... Rf8 {[%clk
0:00:33.1]} 35. Qb7 {[%clk 0:00:12]} 35... Nxb1 {[%clk 0:00:29.9]} 36. Qxb1
{[%clk 0:00:12.9]} 36... Qd4+ {[%clk 0:00:28.7]} 37. Kh1 {[%clk 0:00:12.5]}
37... Bf3 {[%clk 0:00:28.8]} 38. Qf1 {[%clk 0:00:10.7]} 38... Bxg2+ {[%clk
0:00:26.3]} 39. Qxg2 {[%clk 0:00:11.6]} 39... Qd1+ {[%clk 0:00:25.8]} 40. Qg1
{[%clk 0:00:12.5]} 40... Rf1 {[%clk 0:00:22.6]} 0-1